[Event "2nd Namma Bengaluru Open-A 2025"]
[Site "Bengaluru"]
[Date "2025.04.10"]
[Round "1.1"]
[White "Jaidambareesh N R"]
[Black "Iniyan, Pa"]
[Result "1/2-1/2"]
[Annotator "TA"]
[ECO "B08"]
[WhiteElo "2037"]
[BlackElo "2578"]
[PlyCount "62"]
[EventDate "2025.04.10"]
[EventType "swiss"]
[EventCountry "IND"]
[SourceTitle "playchess.com"]
[Source "ChessBase"]
[SourceQuality "1"]
[TimeControl "5400+30"]

{[%evp 9,62,30,50,41,43,47,39,44,41,31,51,45,58,11,11,14,48,42,73,78,137,80,73,71,174,172,147,77,203,133,161,141,143,43,54,56,54,11,39,54,48,13,49,35,91,21,36,0,42,-20,82,40,29,8,81]} 1. Nf3 g6 {[%emt 0:06:45]} 2. d4 {[%emt 0:00:17]} Bg7 {[%emt 0:00:09]} 3. e4 {[%emt 0:00:12]} d6 {[%emt 0:00:24]} 4. Nc3 {[%emt 0:00:05]} Nf6 {[%emt 0:02:21]} 5. Be3 {[%emt 0:03:05][%cal Bc1e3,Be3g5,Bg5h4,Bh4g3][%mdl 32]} Ng4 {[%emt 0:04:05]} 6. Bg5 {[%emt 0:01:01] B08: Pirc Defence: Classical System.} h6 {[%emt 0:01:16]} 7. Bh4 {[%emt 0:01:44]} c5 {[%emt 0:03:03]} 8. Be2 {[%emt 0:13:47] White is slightly better.} (8. dxc5 {with more complications.} Qa5 9. Qd2 Qxc5 10. Nd5) 8... g5 $146 {[%emt 0:17:57] [#]} (8... Nc6 9. dxc5 dxc5 10. Qxd8+ Nxd8 11. Nd5 Ne6 12. O-O-O g5 13. Bg3 Bd7 14. h4 Rc8 {0-1 Tokhirjonova,G (2378)-Yu,J (2315) Titled Tuesday intern op 14th April blitz 2020 (6)}) 9. Bg3 {[%emt 0:01:07]} cxd4 {[%emt 0:18:31]} 10. Nxd4 {[%emt 0:03:16]} Ne5 {[%emt 0:00:14]} 11. O-O {[%emt 0:19:43]} (11. h4 $14) 11... Nbc6 $11 {[%emt 0:00:28]} 12. Nf5 $36 {[%emt 0:08:42][%mdl 2048] White has some pressure.} Bxf5 {[%emt 0:01:53]} 13. exf5 {[%emt 0:00:16]} Qa5 {[%emt 0:08:01][%cal Oc6d4]} 14. Nd5 {[%emt 0:09:54]} e6 {[%emt 0:08:40]} (14... Nd4 15. Ne3 (15. Qxd4 Nf3+ 16. Bxf3 Bxd4 $17) 15... Rd8) 15. Ne3 {[%emt 0:05:19]} (15. fxe6 $142 {Strongly threatening Bxe5.} fxe6 16. Bh5+ Kd7 17. Ne3) 15... O-O-O {[%emt 0:03:10]} 16. c3 {[%emt 0:02:24]} d5 {[%emt 0:03:03]} (16... Kb8 $16 {keeps fighting.}) 17. fxe6 $18 {[%emt 0:04:34]} fxe6 {[%emt 0:00:12]} 18. Nc2 {[%emt 0:01:48]} ({White should play} 18. Re1) 18... Nf7 {[%emt 0:11:07]} (18... Ng6 $16) 19. Nd4 {[%emt 0:04:39]} Bxd4 {[%emt 0:01:18]} 20. cxd4 {[%emt 0:00:11][%cal Ob2b4] [#]} Nd6 {[%emt 0:00:50]} 21. Bg4 {[%emt 0:03:41]} (21. Qc2 $16) 21... Nf5 $14 {[%emt 0:00:06]} 22. Re1 {[%emt 0:00:24]} Nxg3 $1 {[%emt 0:03:01]} 23. hxg3 {[%emt 0:01:15][%cal Ob2b4]} (23. Rxe6 $5 Kb8 24. hxg3 $11) 23... Kb8 {[%emt 0:00:09]} 24. Rxe6 {[%emt 0:02:28][%cal Ob2b4]} Qb4 {[%emt 0:00:33][%csl LRb2,LRd4]} 25. Rc1 {[%emt 0:04:34]} Qxd4 {[%emt 0:03:05]} 26. Qe2 {[%emt 0:02:27]} Qb6 {[%emt 0:02:20]} ({Better is} 26... Qg7 $14) 27. Rc3 {[%emt 0:01:43]} (27. Rd1 $16) 27... Ka8 $11 {[%emt 0:00:08][%cal Oc6d4] Threatens to win with ...Nd4!.} 28. Ra3 {[%emt 0:01:07]} Qc7 {[%emt 0:00:41][%cal Oh6h5]} 29. Qb5 {[%emt 0:01:38]} (29. Bf3 $14) 29... Rd6 {[%emt 0:00:37]} (29... h5 $11 30. Be2 Qf7) 30. Rxd6 {[%emt 0:00:27]} Qxd6 {[%emt 0:00:02]} 31. Rb3 {[%emt 0:01:11]} Rh7 {[%emt 0:00:20] Weighted Error Value: White=0.30/Black=0.28 (precise)   Mistake:       	White=6     	Black=6      Inaccurate:     	White=5     	Black=4      OK:         	White=6     	Black=6      Best:        	White=1     	Black=3      Strong:       	---       	Black=1} (31... Rb8 $11 {keeps the balance.}) 1/2-1/2

[Event "2nd Namma Bengaluru Open-A 2025"]
[Site "Bengaluru"]
[Date "2025.04.10"]
[Round "1.2"]
[White "Grigoryan, Karen H."]
[Black "Sachi Jain"]
[Result "1-0"]
[Annotator "TA"]
[ECO "A14"]
[WhiteElo "2556"]
[BlackElo "2036"]
[PlyCount "69"]
[EventDate "2025.04.10"]
[EventType "swiss"]
[EventCountry "IND"]
[SourceTitle "playchess.com"]
[Source "ChessBase"]
[SourceQuality "1"]
[TimeControl "5400+30"]

{[%evp 15,69,13,23,6,0,4,11,9,25,14,22,20,25,9,13,8,4,9,21,0,7,0,0,0,0,2,69,65,90,23,84,116,102,93,647,672,670,630,625,639,1419,1369,1213,973,1304,1307,1259,1242,29991,1106,1074,1074,897,923,839,859]} 1. Nf3 {[%emt 1:31:00]} d5 2. g3 e6 3. Bg2 Nf6 4. O-O Be7 5. b3 O-O 6. c4 b6 7. cxd5 Nxd5 8. Bb2 Bb7 {[%cal Bc8b7,Bb7d5,Bd5e4][%mdl 32]} 9. Nc3 {A14: English Opening: 1...e6 with b3 by White.} Nd7 10. Nxd5 Bxd5 11. Re1 $5 {[%mdl 4] The position is equal. A promising side line.} Bf6 12. d4 $146 (12. Qc2 Bxb2 13. Qxb2 Qf6 14. Qc2 Rac8 15. Qd3 Ne5 16. Nxe5 Qxe5 17. Bxd5 Qxd5 18. Qxd5 exd5 {½-½ Bittner,J (1871)-Jensen,H (1923) GER-chB Seniors 26th 2014 (9)}) 12... Be4 13. Qd2 c5 14. Rad1 cxd4 15. Nxd4 Bxg2 16. Kxg2 Qc8 {Wards off Nc6} 17. e4 Rd8 18. Qe2 Qb7 19. f4 {[%cal Bf2f4,Bf4e5,Be5f6][%mdl 32]} Nc5 20. Qf3 e5 (20... Be7 $11) 21. Nf5 $14 Qc7 {[%cal Oc5d3] [#] Repels Nd6} 22. Kf1 (22. Qe2 $1 $16) 22... Ne6 {[#]} (22... Rxd1 $11 23. Rxd1 Ne6) 23. Rd5 $1 $16 {White is more active.} Qc2 24. fxe5 ({Of course not} 24. Bxe5 $6 Bxe5 25. fxe5 (25. Rxe5 Rd2 $15) 25... Qxh2 $11 (25... Qxa2 26. Kg1 $11)) 24... Rxd5 $4 {[%mdl 8192] A mistake that costs the game.} (24... Qxb2 $16 25. exf6 Qxh2 (25... Qxf6 $2 {is the wrong capture.} 26. e5 $18)) 25. exd5 $18 {[%cal Be4d5,Bd5e6,Be6e7][%mdl 32]} Ng5 {[#]} 26. exf6 $1 Qxb2 27. Qe3 Ne6 28. dxe6 Qxf6 29. Qf3 Rf8 30. e7 Re8 31. Kg2 {[%cal Of3a8] Threatening mate with Qa8!.} g6 32. Nh6+ (32. Qa8 $142 Qxf5 33. Qxe8+ Kg7 34. Qf8+ Kf6 35. Rf1 (35. e8=R a5 $18) 35... Kg5 36. Rxf5+ (36. e8=R Qd5+ 37. Kf2 f6 $18) 36... Kxf5 37. Qxf7+ (37. e8=R Kf6 38. Qh8+ Kg5 39. Re5+ f5 40. Qxh7 Kg4 41. Qxg6#) (37. e8=Q a6 38. Qfxf7+ Kg5 39. Qf4+ Kh5 40. Qh4#) 37... Ke5 38. e8=Q+ (38. e8=R+ Kd6 39. Rd8+ Kc6 40. Qd5+ Kc7 41. Qd7#) 38... Kd6 39. Qfe7+ Kd5 40. Qe5#) 32... Kg7 {White is clearly winning.} 33. Qxf6+ Kxf6 34. Ng4+ Kg7 35. Ne3 {Weighted Error Value: White=0.37/Black=0.98  Loses game:     	---       	Black=1      Mistake:       	White=1     	Black=2      OK:         	White=3     	Black=10     Best:        	White=1     	---        Strong:       	White=1     	---} 1-0

[Event "2nd Namma Bengaluru Open-A 2025"]
[Site "Bengaluru"]
[Date "2025.04.10"]
[Round "1.3"]
[White "Medhvansh Madeti"]
[Black "Petrosyan, Manuel"]
[Result "0-1"]
[Annotator "TA"]
[ECO "B41"]
[WhiteElo "2035"]
[BlackElo "2544"]
[PlyCount "74"]
[EventDate "2025.04.10"]
[EventType "swiss"]
[EventCountry "IND"]
[SourceTitle "playchess.com"]
[Source "ChessBase"]
[SourceQuality "1"]
[TimeControl "5400+30"]

{[%evp 12,74,37,14,66,48,67,61,52,48,56,8,15,16,27,0,46,16,35,-7,0,-6,12,-82,-84,-81,-84,-86,-84,-104,-91,-152,-129,-154,-173,-152,-146,-128,-125,-258,-262,-341,-337,-466,-499,-483,-483,-456,-463,-537,-530,-528,-496,-738,-736,-712,-702,-816,-823,-822,-722,-1318,-672,-29995,-29996]} 1. e4 c5 2. Nf3 e6 3. d4 cxd4 4. Nxd4 a6 5. c4 Nf6 6. Nc3 Qc7 7. Qd3 d6 {B41: Sicilian: Kan Variation: 5 c4.} (7... Nc6 $11) 8. Be2 $14 Nbd7 9. O-O b6 {White is slightly better.} 10. f4 Bb7 11. Nb3 (11. Qe3 $14) 11... Be7 $11 12. Be3 O-O 13. Rac1 Rac8 (13... Nc5 $11 14. Nxc5 dxc5) 14. Bf3 Rfd8 15. Ne2 $146 (15. Qe2 Bf8 16. Nd2 Qb8 17. g4 d5 18. cxd5 exd5 19. e5 Nxe5 20. fxe5 d4 21. exf6 dxe3 {1-0 Votava,J (2516)-Kanovsky,D (2286) CZE-chT 0405 2004 (9.4)}) 15... Qb8 {[%cal Ob6b5]} 16. g4 b5 17. cxb5 {[#]} (17. g5 $1 $11 bxc4 18. Rxc4) 17... Nc5 $1 $17 18. Nxc5 dxc5 19. Qc2 axb5 {Black is more active.} 20. g5 Nd7 {[%cal Bf6d7,Bd7c5,Bc5d3][%mdl 32]} 21. Ng3 (21. a4 $142) 21... c4 22. Bg2 Bc5 23. Qf2 Bxe3 24. Qxe3 Nc5 25. b3 {Now White is beyond hope.} (25. f5 $17 {keeps fighting.}) 25... Rd3 $19 26. Qf2 c3 27. b4 Rd2 28. Qe3 Nd3 29. Rb1 g6 {[%cal Ob8d6]} 30. Ne2 c2 {Prevents Rbd1} 31. Ra1 Rxe2 32. Qxd3 (32. Qxe2 $142 Qa7+ (32... c1=R 33. Qxd3 Qa7+ 34. Kh1 $17) (32... c1=N $2 33. Qe3 $19) (32... c1=Q $2 33. Raxc1 Qa7+ 34. Rc5 $19) (32... Nxf4 $2 33. Qf3 $19) (32... Nxb4 $2 33. Qe3 $19) 33. Kh1) 32... Qa7+ 33. Kh1 Re3 34. Qxb5 Bxe4 35. Bxe4 Rxe4 36. a4 {[#]} Rxf4 $1 37. a5 (37. Rxf4 c1=Q+) 37... Qa8+ {Weighted Error Value: White=0.73/Black=0.18 (very precise)   Mistake:       	White=5     	Black=1      Inaccurate:     	White=5     	---        OK:         	White=5     	Black=13     Best:        	White=1     	Black=5      Strong:       	---       	Black=1} 0-1

[Event "2nd Namma Bengaluru Open-A 2025"]
[Site "Bengaluru"]
[Date "2025.04.10"]
[Round "1.4"]
[White "Pranav Anand"]
[Black "Parambrata Sarkar"]
[Result "1-0"]
[Annotator "TA"]
[ECO "C02"]
[WhiteElo "2538"]
[BlackElo "2035"]
[PlyCount "53"]
[EventDate "2025.04.10"]
[EventType "swiss"]
[EventCountry "IND"]
[SourceTitle "playchess.com"]
[Source "ChessBase"]
[SourceQuality "1"]
[TimeControl "5400+30"]

{[%evp 12,53,26,17,19,0,0,0,11,0,20,14,22,0,1,0,0,0,0,0,135,106,110,116,127,114,229,220,290,297,304,256,310,308,310,293,314,292,690,595,904,863,29975,11539]} 1. e4 {[%emt 0:00:04]} e6 {[%emt 0:00:15]} 2. d4 {[%emt 0:00:12]} d5 {[%emt 0:00:08]} 3. e5 {[%emt 0:00:07]} c5 {[%emt 0:00:07]} 4. c3 {[%emt 0:00:05]} Nc6 {[%emt 0:00:06]} 5. Nf3 {[%emt 0:00:04]} Qb6 {[%emt 0:00:07]} 6. a3 {[%emt 0:00:38]} Nh6 7. Bd3 $1 {[%emt 0:01:39][%mdl 4] is now more promising than 7.b4.} cxd4 {C02: French: Advance Variation.} 8. O-O {[%emt 0:00:31]} Bd7 {[%emt 0:00:40]} 9. b4 {[%emt 0:00:43]} Rc8 {[%emt 0:02:38] The position is equal.} 10. Bb2 {[%emt 0:04:53][%cal Rc3d4]} Be7 {[%emt 0:05:41]} 11. cxd4 {[%emt 0:01:41]} (11. Nxd4 Nxe5 12. Bc2 O-O $17) 11... Nf5 {[%emt 0:15:40]} 12. Nbd2 {[%emt 0:09:22]} a5 $146 {[%emt 0:26:18]} (12... g5 13. Nb3 h5 14. Rc1 g4 15. Ne1 a5 16. Bxf5 exf5 17. Nd3 axb4 18. Nbc5 Be6 19. axb4 {1-0 Khalifman,A (2678)-Dolmatov,S (2605) EU-Cup 19th Rethymno 2003 (3.1)}) 13. b5 {[%emt 0:03:58]} Ncxd4 {[%emt 0:00:27]} 14. Nxd4 {[%emt 0:02:42]} Nxd4 {[%emt 0:00:12]} 15. Qg4 {[%emt 0:00:03][%csl LRd4,LRg7] White sacrificed a pawn} Nf5 {[%emt 0:01:11]} (15... Nc2 $11 {remains equal.} 16. Rac1 (16. Qxg7 Rf8 $16) 16... Bxb5 17. Bxc2 (17. Rxc2 $2 Rxc2 18. Bxc2 Bxf1 $19) 17... h5 (17... Bxf1 18. Ba4+ Rc6 19. Bd4 $14) 18. Qxg7 Kd7) 16. Bxf5 $16 {[%emt 0:04:49]} exf5 {[%emt 0:00:10]} 17. Qxg7 {[%emt 0:00:06]} Rf8 {[%emt 0:00:04] A sharp opening} 18. e6 $1 $36 {[%emt 0:00:34][%mdl 2048] White attacks White is on the roll. White is more active.} (18. Qxh7 Rc2 19. Bc1 Qd4 $17) 18... Bxb5 {[%emt 0:04:00] [#]} (18... Bxe6 $16 19. Nf3 (19. Qxh7 $2 Rc2 $19) 19... Kd7) 19. Rfe1 $1 $18 {[%emt 0:03:28] Threatens to win with exf7+.} f6 {[%emt 0:22:10]} 20. Qxh7 {[%emt 0:14:15]} Bd3 {[%emt 0:08:33]} 21. Qh5+ {[%emt 0:05:03]} Kd8 {[%emt 0:00:29]} 22. Qf3 $1 {[%emt 0:00:05][%csl LRd3,LRd5]} Be4 {[%emt 0:01:10]} 23. Nxe4 {[%emt 0:00:19]} fxe4 {[%emt 0:00:06] [#]} 24. Qf5 {[%emt 0:00:08]} (24. Qe2 Qxe6 25. Rad1 Kc7 $16) 24... Qb3 {[%emt 0:09:43] [#]} (24... Qxb2 $2 {perishes.} 25. Qxd5+ Kc7 26. Reb1 $18 (26. Qxe4 Qb6 $11) (26. Qd7+ Kb8 $18)) (24... Kc7) 25. Rad1 $1 {[%emt 0:02:32]} Rc5 {[%emt 0:00:17]} (25... Rc6 26. Rxd5+) 26. Bd4 {[%emt 0:00:34]} Rb5 {[%emt 0:00:07]} 27. Qf4 {[%emt 0:03:28] Weighted Error Value: White=0.11 (very precise) /Black=1.11  Mistake:       	---       	Black=3      Inaccurate:     	---       	Black=3      OK:         	White=8     	Black=6      Best:        	White=1     	Black=1      Strong:       	White=3     	Black=1} 1-0

[Event "2nd Namma Bengaluru Open-A 2025"]
[Site "Bengaluru"]
[Date "2025.04.10"]
[Round "1.5"]
[White "Nimmy, A.G."]
[Black "Pantsulaia, Levan"]
[Result "0-1"]
[Annotator "RC"]
[ECO "B84"]
[WhiteElo "2034"]
[BlackElo "2532"]
[PlyCount "54"]
[EventDate "2025.04.10"]
[EventType "swiss"]
[EventCountry "IND"]
[SourceTitle "playchess.com"]
[Source "ChessBase"]
[SourceQuality "1"]
[TimeControl "5400+30"]

1. e4 {[%emt 1:31:00]} c5 {[%emt 1:31:00]} 2. Nf3 {[%emt 0:00:30]} e6 3. d4 cxd4 4. Nxd4 a6 5. Nc3 b5 6. a3 Bb7 7. Be2 d6 8. f4 Nf6 9. Bf3 Qc7 10. O-O Be7 11. Kh1 O-O 12. Qe1 Nc6 13. Be3 Na5 14. e5 dxe5 15. fxe5 Nd7 16. Bxb7 Qxb7 17. Qg3 Kh8 18. Rae1 Nc4 19. Bc1 Rac8 20. Ne4 Ncxe5 21. b3 Qd5 22. Bb2 Ng6 23. Qe3 Nde5 24. Rd1 Qb7 25. h3 Rfd8 26. Ng5 Kg8 27. Rd2 Bxg5 0-1

[Event "2nd Namma Bengaluru Open-A 2025"]
[Site "Bengaluru"]
[Date "2025.04.10"]
[Round "1.6"]
[White "Aronyak Ghosh"]
[Black "Jain, Kushagra"]
[Result "1-0"]
[Annotator "TA"]
[ECO "D93"]
[WhiteElo "2525"]
[BlackElo "2034"]
[PlyCount "75"]
[EventDate "2025.04.10"]
[EventType "swiss"]
[EventCountry "IND"]
[SourceTitle "playchess.com"]
[Source "ChessBase"]
[SourceQuality "1"]
[TimeControl "5400+30"]

{[%evp 20,75,26,41,41,42,46,44,35,37,43,25,21,22,41,47,49,50,51,51,51,50,50,50,42,47,72,42,70,9,73,74,129,97,229,231,228,228,224,231,262,157,157,157,157,157,157,157,157,157,178,157,311,272,303,279,297,253]} 1. d4 {[%emt 0:00:30]} d5 {[%emt 0:00:30]} 2. c4 {[%emt 0:00:30]} c6 {[%emt 0:00:30]} 3. Nf3 {[%emt 0:00:30]} Nf6 {[%emt 0:00:30]} 4. Qc2 {[%emt 0:00:30]} g6 {[%emt 0:00:30]} 5. Bf4 {[%emt 0:00:30]} Bg7 {[%emt 0:00:30]} 6. e3 {[%emt 0:00:30]} O-O {[%emt 0:00:30]} 7. Nc3 {[%emt 0:00:30]} Bf5 {[%emt 0:00:30]} 8. Qb3 {[%emt 0:00:30]} Qb6 {[%emt 0:00:30]} 9. h3 {[%emt 0:00:30]} Na6 {[%emt 0:00:30][%cal Bb8a6,Ba6b4,Bb4d3][%mdl 32]} 10. c5 {[%emt 0:00:30]} Qxb3 {[%emt 0:00:30]} 11. axb3 {[%emt 0:00:30]} Nb4 {[%emt 0:00:30] and ...Nc2+ should not be overlooked D93: Grünfeld: 4 Nf3 Bg7 5 Bf4 0-0 6 e3.} 12. Ra4 {[%emt 0:00:30]} Nd3+ {[%emt 0:00:30]} 13. Bxd3 {[%emt 0:00:30]} Bxd3 {[%emt 0:00:30] White is slightly better.} 14. Ne5 {[%emt 0:00:30]} Bf5 {[%emt 0:00:30]} 15. g4 {[%emt 0:00:30]} Bc8 {[%emt 0:00:30]} 16. Kd2 $146 {[%emt 0:00:30]} (16. Ke2 Ne8 17. b4 g5 18. Bg3 f6 19. Nd3 e6 20. Ra5 Bd7 21. Na4 a6 22. Nb6 {1-0 Leriche,E (2319)-Mullon,J (2325) FRA-chT2 0304 2003 (8)}) 16... Nd7 {[%emt 0:00:30]} 17. Nxd7 {[%emt 0:00:30]} Bxd7 {[%emt 0:00:30] Black is weak on the dark squares} 18. Rha1 {[%emt 0:00:30]} a6 {[%emt 0:00:30]} 19. Rb4 $1 {[%emt 0:00:30]} Ra7 {[%emt 0:00:30]} 20. Na4 $1 {[%emt 0:00:30]} f6 {[%emt 0:00:30]} 21. Nb6 $36 {[%emt 0:00:30][%mdl 2048] White fights for an advantage.} Be6 {[%emt 0:00:30]} 22. Bc7 {[%emt 0:00:30]} Kf7 {[%emt 0:00:30]} 23. f3 {[%emt 0:00:30][%cal Bf2f3,Bf3f4][%mdl 32]} h5 {[%emt 0:00:30]} 24. Rg1 {[%emt 0:00:30]} (24. Rba4 $14) 24... Rh8 {[%emt 0:00:30]} (24... a5 $11 25. Ra4 Ra6) 25. Ra4 $16 {[%emt 0:00:30]} g5 {[%emt 0:00:30]} (25... Bh6 $142) 26. f4 {[%emt 0:00:30]} f5 {[%emt 0:00:30] [#] Loses the game.} (26... gxf4 $16 27. exf4 Rg8) 27. gxh5 $1 $18 {[%emt 0:00:30]} (27. fxg5 fxg4 28. Rf1+ Kg6) 27... g4 {[%emt 0:00:30] [#]} 28. Rf1 $1 {[%emt 0:00:30]} ({Less strong is} 28. hxg4 fxg4 29. Ke2 Bf6 $14) 28... gxh3 {[%emt 0:00:30][%cal Oa6a5]} 29. Rh1 {[%emt 0:00:30]} Bh6 {[%emt 0:00:30]} ({Reject} 29... Rxh5 30. Bb8 $18) 30. Raa1 {[%emt 0:00:30]} (30. b4 $18) 30... a5 $16 {[%emt 0:00:30]} 31. Rag1 {[%emt 0:00:30]} Ke8 {[%emt 0:00:30]} 32. Rxh3 {[%emt 0:00:30]} Bf7 {[%emt 0:00:30]} 33. Be5 {[%emt 0:00:30]} Rh7 {[%emt 0:00:30]} 34. Rhg3 {[%emt 0:00:30] White has more active pieces.} Kf8 {[%emt 0:00:30]} 35. Rg6 {[%emt 0:00:30]} Bxg6 {[%emt 0:00:30]} (35... Ke8 $16 36. Rh1 Ra6) 36. hxg6 $18 {[%emt 0:00:30] White has a decisive advantage.} Rg7 {[%emt 0:00:30]} 37. Bxg7+ {[%emt 0:00:30]} Bxg7 {[%emt 0:00:30]} 38. Rh1 {[%emt 0:00:30] Weighted Error Value: White=0.10 (very precise) /Black=0.26 (precise)   Mistake:       	White=2     	Black=4      Inaccurate:     	White=1     	Black=1      OK:         	White=9     	Black=11     Best:        	White=4     	---        Strong:       	White=4     	---} 1-0

[Event "2nd Namma Bengaluru Open-A 2025"]
[Site "Bengaluru"]
[Date "2025.04.10"]
[Round "1.7"]
[White "Rohith Krishna S"]
[Black "Chanda, Sandipan"]
[Result "1/2-1/2"]
[Annotator "TA"]
[ECO "C08"]
[WhiteElo "2490"]
[BlackElo "2485"]
[PlyCount "82"]
[EventDate "2025.04.10"]
[EventType "swiss"]
[EventCountry "IND"]
[SourceTitle "playchess.com"]
[Source "ChessBase"]
[SourceQuality "1"]
[TimeControl "5400+30"]

{[%evp 18,82,22,19,21,14,20,10,9,18,20,0,-6,-2,5,-30,-16,-29,-22,-17,-13,-38,-12,-22,0,0,18,8,26,0,0,-20,-18,-20,0,-9,-12,-58,-53,-154,-143,-250,-244,-362,-95,-91,-116,-118,-60,-70,-33,-33,-34,-208,-149,-5481,-5407,-5416,0,0,0,-5065,0,0,0,-5065,0]} 1. e4 {[%emt 1:31:00]} e6 2. d4 d5 3. Nd2 c5 4. exd5 exd5 5. Ngf3 Nf6 6. Bb5+ Bd7 7. Bxd7+ Nbxd7 8. O-O Be7 9. dxc5 Nxc5 10. Nd4 g6 {C08: French Tarrasch: 3...c5 4 exd5 exd5 sidelines.} 11. N2b3 O-O 12. Nxc5 $146 (12. Bg5 Nce4 13. Bh4 Nh5 14. Bxe7 Qxe7 15. Qf3 Qf6 16. Qxf6 Nhxf6 17. f3 Nd6 18. Nc5 {1-0 Karjakin,S (2747)-Vallejo Pons,F (2697) EU-Cup 26th Plovdiv 2010 (3.2)}) 12... Bxc5 {The position is equal.} 13. Bg5 Qb6 14. Bxf6 Qxf6 15. Nb3 Bb6 16. c3 Rad8 17. Qd3 Rfe8 18. Rad1 {[%cal Ba1d1,Bd1d2,Bd2e2][%mdl 32]} h5 19. Nd4 Re4 (19... Bxd4 {simplifies} 20. Qxd4 Qxd4 21. Rxd4 Re2) 20. Nf3 h4 {[%cal Oh4h3]} 21. h3 $1 a6 22. Rd2 Qf4 23. Re2 Rde8 $36 {[%mdl 2048] Black is pushing.} 24. Rfe1 Bc7 {And now ...Rxe2 would win.} 25. Kf1 Qf5 26. Rxe4 dxe4 27. Qc4 (27. Qc2 $11) 27... Bb6 $15 28. Re2 {[#]} (28. Nd4 $15 Qf4 29. Qe2) 28... Kg7 $1 $17 29. Nxh4 {[#]} (29. Nd4 $17 Qf4 30. Re3) 29... Qd7 $1 $19 30. Kg1 (30. Qb3 {was called for.} Bd8 31. Nxg6 fxg6 32. Re1) 30... g5 $2 (30... Re6 $19 {and Black stays clearly on top.} 31. Kh2 Qd1 32. Nxg6 Qd6+ (32... Kxg6 33. Rxe4 Bxf2 34. Rxe6+ Kg7 35. Rg6+ Kxg6 36. Qe4+ f5 37. Qe6+ Kg5 38. h4+ Kxh4 39. Qh6+ Kg4 40. Qg7+ Kf4 41. g3+ Ke3 42. Qe5+ Kd2 43. Qf4+ Be3 44. Qxf5 $19) (32... Rxg6 33. Qxe4 Qd6+ 34. Kg1 $17) (32... fxg6 33. Qxe6 Bc7+ 34. g3 $11) 33. Kh1 fxg6 (33... Kxg6 $2 34. Rxe4 Bxf2 35. Rxe6+ Qxe6 36. Qxe6+ fxe6 37. g4 $19) 34. Rxe4 Rf6) 31. Rxe4 $17 (31. Qb3 $2 gxh4 32. a3 e3 $19) 31... Rxe4 (31... gxh4 $6 32. Rxe8 Qxe8 33. Qg4+ Kf6 34. Qf4+ Kg6 35. Qg4+ Kf6 36. Qf4+ Kg6 37. Qg4+ Kf6 $11) 32. Qxe4 {[%mdl 4096] Endgame KQB-KQN. White is two pawns up.} Qd1+ (32... gxh4 $17 33. Qxh4 Qd1+ 34. Kh2 Qd2 35. Qg4+ Kf6 36. Qf3+ Ke6 37. Qe4+ Kd6 38. Qxb7 Qf4+ (38... Bxf2 39. Qxf7 Qxb2 40. Qf6+ Kc5 41. Qe5+ Kc6 42. Qf6+ Kb7 43. Qe7+ Kb6 44. Qe6+ Kb7 45. Qd5+ Kc7 46. Qe5+ Kc6 47. Qe6+ Kb5 48. Qd7+ Kc4 49. Qc8+ Bc5 50. Qxa6+ Kxc3 51. Qf6+ Bd4 52. Qf3+ Kd2 53. h4 $11) (38... Qxf2 39. Qxa6 Qxb2 40. h4 $17) (38... Qxb2 39. Qxf7 Qxf2 40. Qxf2 $17) 39. g3 Qxf2+ 40. Qg2 Qe3) 33. Kh2 $15 Bc7+ (33... gxh4 34. Qe5+ f6 35. Qe7+ Kg6 36. Qe8+ Kf5 37. Qc8+ Ke5 38. Qxb7 $17) 34. g3 gxh4 35. Qxb7 $2 (35. Qxh4 $15 Qe2 36. Qg5+ Kf8 37. Qc5+ Qe7 38. Qc4) 35... Qe2 36. Qxc7 {[%mdl 8192]} (36. Kg2 $17 hxg3 (36... Bxg3 $2 37. Qf3 $19) 37. Qf3 Qxf3+ (37... Qxb2 $2 38. Qg4+ Kf6 39. Qh4+ Ke6 40. Qc4+ Kd6 41. Kxg3 $17) 38. Kxf3 gxf2 39. Kxf2) 36... Qxf2+ $17 {KQ-KQ. White is two pawns up.} ({Inferior is} 36... Qxb2 37. Qe5+ (37. gxh4 Qxf2+ 38. Kh1 Qxh4 $11) 37... f6 38. Qe7+ Kg6 39. Qe4+ (39. gxh4 Qxf2+ 40. Kh1 Qxa2 $11) 39... Kg7 40. Qg4+ (40. gxh4 Qxa2 41. Qg4+ Kh7 $18) 40... Kf7 41. Qd7+ (41. gxh4 Qxf2+ 42. Kh1 Qe1+ 43. Kg2 Qxc3 $11) 41... Kg6 42. Qg4+ (42. gxh4 Qxf2+ 43. Kh1 Qf3+ 44. Kh2 Qe2+ 45. Kg3 Qe3+ 46. Kg2 Qe2+ 47. Kg1 Qe1+ 48. Kg2 Qe2+ 49. Kg3 Qe5+ 50. Kf2 Qxc3 $11) 42... Kf7 43. Qd7+ Kf8 44. Qd4 $14 (44. gxh4 Qxf2+ 45. Kh1 Qxh4 $11)) 37. Kh1 Qf1+ (37... Qxg3 $2 38. Qxg3+ hxg3 39. Kg2 $18) 38. Kh2 Qf2+ 39. Kh1 Qf1+ (39... Qxg3 $2 40. Qxg3+ hxg3 41. Kg2 $18) 40. Kh2 {and Qe5+ should not be overlooked} Qf2+ 41. Kh1 Qf1+ $2 {Weighted Error Value: White=0.44/Black=0.46  Loses game:     	White=5     	---        Missed win:     	---       	Black=2      Mistake:       	White=4     	Black=1      Inaccurate:     	White=3     	Black=2      OK:         	White=5     	Black=8      Best:        	White=3     	Black=1      Strong:       	White=1     	Black=2} (41... Qxg3 $2 {perishes.} 42. Qxg3+ hxg3 43. Kg2 $18) (41... hxg3 $19 {[%csl Gg3][%cal Rf2h2]} 42. Qe5+ Kg6 43. Qe4+ f5) 1/2-1/2

[Event "2nd Namma Bengaluru Open-A 2025"]
[Site "Bengaluru"]
[Date "2025.04.10"]
[Round "1.8"]
[White "Ayush Sharma"]
[Black "Ayaan Garg"]
[Result "1-0"]
[Annotator "RC"]
[ECO "B12"]
[WhiteElo "2485"]
[BlackElo "2033"]
[PlyCount "50"]
[EventDate "2025.04.10"]
[EventType "swiss"]
[EventCountry "IND"]
[SourceTitle "playchess.com"]
[Source "ChessBase"]
[SourceQuality "1"]
[TimeControl "5400+30"]

1. e4 {[%emt 1:31:00]} c6 2. d4 d5 3. e5 Bf5 4. Be3 e6 5. Nd2 Ne7 6. Nb3 Nd7 7. Nf3 h6 8. Be2 Bh7 9. h4 Nf5 10. Bf4 Be7 11. h5 a6 12. c3 b6 13. O-O Nh4 14. Nxh4 Bxh4 15. a4 O-O 16. Be3 Qc7 17. Bd3 Be7 18. Bxh7+ Kxh7 19. f4 f5 20. g4 Kh8 21. Kh1 Qd8 22. Rg1 Qe8 23. Nd2 Qf7 24. Nf1 Rg8 25. gxf5 Qxf5 1-0